[Event "Early-Titled-Tuesday-Blitz-June-18-2024"]
[Site "Chess.com"]
[Date "2024.06.18"]
[Round "8"]
[White "patzer-reloaded"]
[Black "reniite"]
[Result "1-0"]
[WhiteElo "2461"]
[BlackElo "2281"]
[TimeControl "180+1"]
[EndTime "9:30:47 PDT"]
[Termination "patzer-reloaded won by checkmate"]

1. d4 {[%clk 0:03:00.9]} 1... d5 {[%clk 0:02:10.6]} 2. c4 {[%clk 0:02:59.8]}
2... c6 {[%clk 0:02:09.3]} 3. Nf3 {[%clk 0:02:59.3]} 3... Nf6 {[%clk 0:02:09.3]}
4. Nc3 {[%clk 0:02:59.4]} 4... e6 {[%clk 0:02:09.6]} 5. Bg5 {[%clk 0:02:58.1]}
5... Be7 {[%clk 0:02:10]} 6. e3 {[%clk 0:02:57.7]} 6... O-O {[%clk 0:02:00.9]}
7. a3 {[%clk 0:02:56.8]} 7... Nbd7 {[%clk 0:01:56.4]} 8. Rc1 {[%clk 0:02:55.6]}
8... dxc4 {[%clk 0:01:56.2]} 9. Bxc4 {[%clk 0:02:54.6]} 9... Nb6 {[%clk
0:01:56.3]} 10. Ba2 {[%clk 0:02:53.2]} 10... Nbd5 {[%clk 0:01:56.3]} 11. O-O
{[%clk 0:02:47.7]} 11... h6 {[%clk 0:01:54.8]} 12. Bxf6 {[%clk 0:02:16.6]} 12...
Bxf6 {[%clk 0:01:49.9]} 13. Ne4 {[%clk 0:02:15.6]} 13... Be7 {[%clk 0:01:46.8]}
14. Qe2 {[%clk 0:02:11.7]} 14... a5 {[%clk 0:01:33.6]} 15. Rfd1 {[%clk
0:02:06.5]} 15... Qb6 {[%clk 0:01:24.5]} 16. Ne5 {[%clk 0:02:00.5]} 16... Nf6
{[%clk 0:01:20.9]} 17. Nc5 {[%clk 0:01:59.3]} 17... Rd8 {[%clk 0:01:10.5]} 18.
e4 {[%clk 0:01:51.5]} 18... Bf8 {[%clk 0:01:08.9]} 19. h4 {[%clk 0:01:43.2]}
19... Qc7 {[%clk 0:01:02.8]} 20. h5 {[%clk 0:01:32.3]} 20... b6 {[%clk
0:01:00.4]} 21. Ncd3 {[%clk 0:01:23.2]} 21... Bb7 {[%clk 0:01:00.4]} 22. Nf4
{[%clk 0:01:16.2]} 22... c5 {[%clk 0:00:55]} 23. Nxf7 {[%clk 0:01:14.6]} 23...
Qxf4 {[%clk 0:00:40.6]} 24. Nxd8 {[%clk 0:00:55.4]} 24... Rxd8 {[%clk
0:00:40.1]} 25. Bxe6+ {[%clk 0:00:54.1]} 25... Kh8 {[%clk 0:00:39.5]} 26. dxc5
{[%clk 0:00:48.6]} 26... Rxd1+ {[%clk 0:00:36.9]} 27. Rxd1 {[%clk 0:00:47.8]}
27... Bxe4 {[%clk 0:00:29.3]} 28. cxb6 {[%clk 0:00:30.7]} 28... Qg5 {[%clk
0:00:29.1]} 29. Bh3 {[%clk 0:00:22.5]} 29... Bc5 {[%clk 0:00:21.3]} 30. Qd2
{[%clk 0:00:09.5]} 30... Qxd2 {[%clk 0:00:18.9]} 31. Rxd2 {[%clk 0:00:09.2]}
31... Bxb6 {[%clk 0:00:19.8]} 32. g4 {[%clk 0:00:04.9]} 32... Nd5 {[%clk
0:00:16.4]} 33. Bg2 {[%clk 0:00:04.3]} 33... Bxg2 {[%clk 0:00:15.2]} 34. Kxg2
{[%clk 0:00:05.2]} 34... Nf4+ {[%clk 0:00:15.8]} 35. Kf3 {[%clk 0:00:05.4]}
35... Ne6 {[%clk 0:00:14.5]} 36. Rd6 {[%clk 0:00:05]} 36... Nd4+ {[%clk
0:00:13.4]} 37. Ke4 {[%clk 0:00:05.2]} 37... Bc5 {[%clk 0:00:06.8]} 38. Rxd4
{[%clk 0:00:04.8]} 38... Kh7 {[%clk 0:00:07.6]} 39. Rd5 {[%clk 0:00:05.4]} 39...
Bxf2 {[%clk 0:00:07.7]} 40. Rxa5 {[%clk 0:00:05.7]} 40... Bg3 {[%clk 0:00:07.8]}
41. Rb5 {[%clk 0:00:06.6]} 41... Be1 {[%clk 0:00:08.4]} 42. a4 {[%clk
0:00:07.2]} 42... Bd2 {[%clk 0:00:09]} 43. a5 {[%clk 0:00:07.8]} 43... Bc1
{[%clk 0:00:09.9]} 44. a6 {[%clk 0:00:08]} 44... Be3 {[%clk 0:00:10.5]} 45. Rb7
{[%clk 0:00:07.1]} 45... Ba7 {[%clk 0:00:11.4]} 46. Rxa7 {[%clk 0:00:06.9]}
46... Kg8 {[%clk 0:00:11.5]} 47. Rb7 {[%clk 0:00:07.3]} 47... Kh8 {[%clk
0:00:11.3]} 48. a7 {[%clk 0:00:07.8]} 48... g5 {[%clk 0:00:11.8]} 49. a8=Q#
{[%clk 0:00:07.4]} 1-0

[Event "Early-Titled-Tuesday-Blitz-June-18-2024"]
[Site "Chess.com"]
[Date "2024.06.18"]
[Round "8"]
[White "ilqar_74"]
[Black "Patricius007"]
[Result "1-0"]
[WhiteElo "2827"]
[BlackElo "2545"]
[TimeControl "180+1"]
[EndTime "9:30:49 PDT"]
[Termination "ilqar_74 won by checkmate"]

1. e4 {[%clk 0:03:00.9]} 1... d6 {[%clk 0:02:58.8]} 2. Nc3 {[%clk 0:02:58.4]}
2... Nf6 {[%clk 0:02:58.9]} 3. f4 {[%clk 0:02:56.9]} 3... c5 {[%clk 0:02:55.7]}
4. Nf3 {[%clk 0:02:56.7]} 4... Nc6 {[%clk 0:02:56]} 5. Bc4 {[%clk 0:02:56.6]}
5... e6 {[%clk 0:02:55.7]} 6. O-O {[%clk 0:02:54.6]} 6... Be7 {[%clk 0:02:55.7]}
7. d3 {[%clk 0:02:54.3]} 7... a6 {[%clk 0:02:55.5]} 8. a4 {[%clk 0:02:52.5]}
8... O-O {[%clk 0:02:56]} 9. Qe1 {[%clk 0:02:49.1]} 9... Re8 {[%clk 0:02:53.5]}
10. Qg3 {[%clk 0:02:47.3]} 10... d5 {[%clk 0:02:53.7]} 11. Ba2 {[%clk
0:02:45.2]} 11... Nd4 {[%clk 0:02:51.1]} 12. e5 {[%clk 0:02:40.5]} 12... Nf5
{[%clk 0:02:45.4]} 13. Qh3 {[%clk 0:02:37.5]} 13... Nd7 {[%clk 0:02:39.6]} 14.
Ne2 {[%clk 0:02:33.4]} 14... Qb6 {[%clk 0:02:37.4]} 15. c3 {[%clk 0:02:30.1]}
15... d4 {[%clk 0:02:34.9]} 16. c4 {[%clk 0:02:30.2]} 16... Nf8 {[%clk
0:02:33.4]} 17. b3 {[%clk 0:02:22.2]} 17... Bd7 {[%clk 0:02:32.2]} 18. Bd2
{[%clk 0:02:18.9]} 18... Qc7 {[%clk 0:02:26.1]} 19. g4 {[%clk 0:02:11.7]} 19...
Ne3 {[%clk 0:02:26.1]} 20. Bxe3 {[%clk 0:02:12.3]} 20... dxe3 {[%clk 0:02:27]}
21. Ne1 {[%clk 0:02:11]} 21... b5 {[%clk 0:02:23.1]} 22. Qxe3 {[%clk 0:02:10.2]}
22... bxa4 {[%clk 0:02:23.2]} 23. bxa4 {[%clk 0:02:11.1]} 23... Bxa4 {[%clk
0:02:23.1]} 24. Bb1 {[%clk 0:02:03.5]} 24... Bc6 {[%clk 0:02:21.5]} 25. Nf3
{[%clk 0:01:58.8]} 25... Qb7 {[%clk 0:02:17.4]} 26. Bc2 {[%clk 0:01:52.4]} 26...
Red8 {[%clk 0:02:06.2]} 27. Rfb1 {[%clk 0:01:48.8]} 27... Qd7 {[%clk 0:02:03.8]}
28. Ng3 {[%clk 0:01:47.4]} 28... Rab8 {[%clk 0:02:00]} 29. Ne4 {[%clk
0:01:45.9]} 29... Rxb1+ {[%clk 0:01:55]} 30. Rxb1 {[%clk 0:01:46.8]} 30... Bxe4
{[%clk 0:01:45.1]} 31. Qxe4 {[%clk 0:01:46.5]} 31... a5 {[%clk 0:01:28.6]} 32.
Rb7 {[%clk 0:01:43.5]} 32... Qe8 {[%clk 0:01:26.5]} 33. Ra7 {[%clk 0:01:31.7]}
33... Rb8 {[%clk 0:01:20.6]} 34. Rxa5 {[%clk 0:01:05.6]} 34... Rb2 {[%clk
0:01:20.2]} 35. Ba4 {[%clk 0:01:04.2]} 35... Qb8 {[%clk 0:01:15.5]} 36. Bb5
{[%clk 0:01:01.4]} 36... Rb1+ {[%clk 0:01:01.7]} 37. Kg2 {[%clk 0:00:59.7]}
37... Rb2+ {[%clk 0:01:01.8]} 38. Kg3 {[%clk 0:00:56.1]} 38... Qc7 {[%clk
0:00:50.1]} 39. Ra8 {[%clk 0:00:52.8]} 39... Bd8 {[%clk 0:00:50.5]} 40. Qc6
{[%clk 0:00:44.4]} 40... Qxc6 {[%clk 0:00:18.9]} 41. Bxc6 {[%clk 0:00:44.3]}
41... Be7 {[%clk 0:00:18.8]} 42. Ra7 {[%clk 0:00:36.3]} 42... Bd8 {[%clk
0:00:18.9]} 43. Be8 {[%clk 0:00:33.8]} 43... f6 {[%clk 0:00:16.8]} 44. Bf7+
{[%clk 0:00:33.4]} 44... Kh8 {[%clk 0:00:16.8]} 45. Ra8 {[%clk 0:00:34]} 45...
Be7 {[%clk 0:00:17.4]} 46. Ra7 {[%clk 0:00:27.4]} 46... Bd8 {[%clk 0:00:17.3]}
47. Ra8 {[%clk 0:00:25.2]} 47... Be7 {[%clk 0:00:17.6]} 48. Bxe6 {[%clk
0:00:25.8]} 48... h5 {[%clk 0:00:14.3]} 49. gxh5 {[%clk 0:00:24.9]} 49... Kh7
{[%clk 0:00:14.3]} 50. Bf5+ {[%clk 0:00:24.4]} 50... Kh6 {[%clk 0:00:14.5]} 51.
Re8 {[%clk 0:00:24.9]} 51... Rb7 {[%clk 0:00:13.3]} 52. Be4 {[%clk 0:00:24.6]}
52... Rc7 {[%clk 0:00:13.4]} 53. Kg4 {[%clk 0:00:22.7]} 53... Ne6 {[%clk
0:00:09.4]} 54. Rh8# {[%clk 0:00:21.5]} 1-0

[Event "Early-Titled-Tuesday-Blitz-June-18-2024"]
[Site "Chess.com"]
[Date "2024.06.18"]
[Round "8"]
[White "jk13"]
[Black "XDPS"]
[Result "1/2-1/2"]
[WhiteElo "2705"]
[BlackElo "2868"]
[TimeControl "180+1"]
[EndTime "9:30:51 PDT"]
[Termination "Game drawn by repetition"]

1. e4 {[%clk 0:03:00.9]} 1... c5 {[%clk 0:03:00.1]} 2. c3 {[%clk 0:03:01.2]}
2... d6 {[%clk 0:02:58.8]} 3. d4 {[%clk 0:03:00.7]} 3... Nf6 {[%clk 0:02:59]} 4.
Bd3 {[%clk 0:03:00.7]} 4... Qc7 {[%clk 0:02:59.1]} 5. Nf3 {[%clk 0:03:00.7]}
5... Bg4 {[%clk 0:02:59.1]} 6. O-O {[%clk 0:02:59.7]} 6... Nbd7 {[%clk
0:02:58.8]} 7. Nbd2 {[%clk 0:02:54.8]} 7... e5 {[%clk 0:02:59.1]} 8. dxe5 {[%clk
0:02:52.2]} 8... dxe5 {[%clk 0:02:59.1]} 9. h3 {[%clk 0:02:51.7]} 9... Bh5
{[%clk 0:02:58.2]} 10. a4 {[%clk 0:02:42.9]} 10... Be7 {[%clk 0:02:58]} 11. Qe2
{[%clk 0:02:42.6]} 11... O-O {[%clk 0:02:58.4]} 12. Nc4 {[%clk 0:02:40.8]} 12...
Bxf3 {[%clk 0:02:51.3]} 13. Qxf3 {[%clk 0:02:40.5]} 13... h6 {[%clk 0:02:45]}
14. Ne3 {[%clk 0:02:38.9]} 14... Nh7 {[%clk 0:02:37.2]} 15. Nf5 {[%clk
0:02:02.2]} 15... Bf6 {[%clk 0:02:35]} 16. Bb5 {[%clk 0:01:40.2]} 16... Rad8
{[%clk 0:02:29.4]} 17. Be3 {[%clk 0:01:36.4]} 17... Nb8 {[%clk 0:02:25.1]} 18.
Bc4 {[%clk 0:01:33.5]} 18... Kh8 {[%clk 0:02:21.4]} 19. h4 {[%clk 0:01:28]}
19... Rfe8 {[%clk 0:02:06]} 20. g3 {[%clk 0:01:25.1]} 20... Nd7 {[%clk
0:02:01.4]} 21. Bxf7 {[%clk 0:01:20.1]} 21... Rf8 {[%clk 0:02:01]} 22. Bg6
{[%clk 0:00:56.3]} 22... b6 {[%clk 0:01:56.2]} 23. Rad1 {[%clk 0:00:55]} 23...
Nb8 {[%clk 0:01:56.1]} 24. Qh5 {[%clk 0:00:55]} 24... Nc6 {[%clk 0:01:52.9]} 25.
Rxd8 {[%clk 0:00:48.8]} 25... Rxd8 {[%clk 0:01:53.8]} 26. Rd1 {[%clk 0:00:48.4]}
26... Rxd1+ {[%clk 0:01:49.8]} 27. Qxd1 {[%clk 0:00:48.5]} 27... Nf8 {[%clk
0:01:50.7]} 28. Be8 {[%clk 0:00:47.5]} 28... Ne7 {[%clk 0:01:51.1]} 29. Qd6
{[%clk 0:00:39.5]} 29... Qc8 {[%clk 0:01:39.9]} 30. Nxe7 {[%clk 0:00:37.5]}
30... Qxe8 {[%clk 0:01:40.2]} 31. Nd5 {[%clk 0:00:36]} 31... Nh7 {[%clk
0:01:32.3]} 32. Bxh6 {[%clk 0:00:33.9]} 32... Bxh4 {[%clk 0:01:03]} 33. Bxg7+
{[%clk 0:00:34]} 33... Kxg7 {[%clk 0:01:03.9]} 34. gxh4 {[%clk 0:00:34.5]} 34...
Qh5 {[%clk 0:01:03.2]} 35. Qe7+ {[%clk 0:00:32.1]} 35... Kg8 {[%clk 0:01:02.9]}
36. Nf6+ {[%clk 0:00:28.7]} 36... Nxf6 {[%clk 0:01:03]} 37. Qxf6 {[%clk
0:00:29.6]} 37... Qg4+ {[%clk 0:01:03.7]} 38. Kh2 {[%clk 0:00:29]} 38... Qxe4
{[%clk 0:01:03.8]} 39. h5 {[%clk 0:00:24.6]} 39... Qxa4 {[%clk 0:00:43.7]} 40.
Qxe5 {[%clk 0:00:21.2]} 40... Qh4+ {[%clk 0:00:40.6]} 41. Kg2 {[%clk 0:00:21.6]}
41... Kh7 {[%clk 0:00:19.8]} 42. Qf5+ {[%clk 0:00:21.1]} 42... Kg7 {[%clk
0:00:17]} 43. Qg6+ {[%clk 0:00:19.6]} 43... Kf8 {[%clk 0:00:17.6]} 44. h6 {[%clk
0:00:19.3]} 44... Qe7 {[%clk 0:00:14.7]} 45. f4 {[%clk 0:00:16.3]} 45... Qe2+
{[%clk 0:00:14.2]} 46. Kg3 {[%clk 0:00:16.9]} 46... Qe1+ {[%clk 0:00:14.5]} 47.
Kg4 {[%clk 0:00:17.2]} 47... Qe2+ {[%clk 0:00:14.7]} 48. Kg5 {[%clk 0:00:17.2]}
48... Qg2+ {[%clk 0:00:14.5]} 49. Kf6 {[%clk 0:00:17]} 49... Qc6+ {[%clk
0:00:14.7]} 50. Kf5 {[%clk 0:00:17]} 50... Qd5+ {[%clk 0:00:14.7]} 51. Kg4
{[%clk 0:00:16.4]} 51... Qg2+ {[%clk 0:00:15]} 52. Kh4 {[%clk 0:00:15.7]} 52...
Qh2+ {[%clk 0:00:15.4]} 53. Kg5 {[%clk 0:00:16]} 53... Qg2+ {[%clk 0:00:15.5]}
54. Kf5 {[%clk 0:00:15.4]} 54... Qd5+ {[%clk 0:00:15.3]} 55. Kg4 {[%clk
0:00:14.7]} 55... Qg2+ {[%clk 0:00:15.3]} 56. Kf5 {[%clk 0:00:15.6]} 56... Qd5+
{[%clk 0:00:08.6]} 1/2-1/2

[Event "Early-Titled-Tuesday-Blitz-June-18-2024"]
[Site "Chess.com"]
[Date "2024.06.18"]
[Round "8"]
[White "cthulhuuu"]
[Black "Oleg_Papayan"]
[Result "1-0"]
[WhiteElo "2387"]
[BlackElo "2555"]
[TimeControl "180+1"]
[EndTime "9:30:54 PDT"]
[Termination "cthulhuuu won on time"]

1. e4 {[%clk 0:02:59.7]} 1... d5 {[%clk 0:03:00.3]} 2. exd5 {[%clk 0:02:59.5]}
2... Qxd5 {[%clk 0:03:01.2]} 3. d3 {[%clk 0:02:59.7]} 3... Nf6 {[%clk
0:02:59.1]} 4. Nf3 {[%clk 0:02:55.8]} 4... c6 {[%clk 0:02:51.6]} 5. Nc3 {[%clk
0:02:55.8]} 5... Qd8 {[%clk 0:02:52]} 6. g3 {[%clk 0:02:56]} 6... Bf5 {[%clk
0:02:52.4]} 7. Bg2 {[%clk 0:02:56.4]} 7... e6 {[%clk 0:02:52.2]} 8. O-O {[%clk
0:02:57]} 8... Nbd7 {[%clk 0:02:52.7]} 9. Re1 {[%clk 0:02:57.6]} 9... Be7 {[%clk
0:02:52.7]} 10. Rb1 {[%clk 0:02:57.4]} 10... a5 {[%clk 0:02:52.6]} 11. a3 {[%clk
0:02:57.4]} 11... a4 {[%clk 0:02:51.8]} 12. Ne5 {[%clk 0:02:55.8]} 12... O-O
{[%clk 0:02:44.1]} 13. Bf4 {[%clk 0:02:54.4]} 13... Nd5 {[%clk 0:02:39.6]} 14.
Nxd5 {[%clk 0:02:53.8]} 14... cxd5 {[%clk 0:02:40.5]} 15. g4 {[%clk 0:02:49.7]}
15... Bg6 {[%clk 0:02:09.4]} 16. Nxg6 {[%clk 0:02:49.1]} 16... hxg6 {[%clk
0:02:10.3]} 17. c4 {[%clk 0:02:49.3]} 17... g5 {[%clk 0:02:04.1]} 18. Be3 {[%clk
0:02:37.2]} 18... Nf6 {[%clk 0:01:48.7]} 19. Bxg5 {[%clk 0:02:33.4]} 19... Qd7
{[%clk 0:01:25.6]} 20. h3 {[%clk 0:02:03.7]} 20... Rfc8 {[%clk 0:01:25.4]} 21.
Rc1 {[%clk 0:02:02.9]} 21... b5 {[%clk 0:00:50.3]} 22. Qf3 {[%clk 0:01:53.5]}
22... dxc4 {[%clk 0:00:39.7]} 23. dxc4 {[%clk 0:01:48.5]} 23... bxc4 {[%clk
0:00:40.6]} 24. Qb7 {[%clk 0:01:07.7]} 24... Qe8 {[%clk 0:00:22.4]} 25. Rxc4
{[%clk 0:00:52.7]} 25... Rxc4 {[%clk 0:00:23.3]} 26. Qxa8 {[%clk 0:00:53.1]}
26... Qxa8 {[%clk 0:00:22.2]} 27. Bxa8 {[%clk 0:00:54]} 27... Rc2 {[%clk
0:00:20]} 28. Bc1 {[%clk 0:00:47]} 28... Bc5 {[%clk 0:00:18.7]} 29. Rf1 {[%clk
0:00:40.8]} 29... Nd5 {[%clk 0:00:19.1]} 30. Bxd5 {[%clk 0:00:39.5]} 30... exd5
{[%clk 0:00:20]} 31. Kg2 {[%clk 0:00:39.6]} 31... f6 {[%clk 0:00:17.7]} 32. Kf3
{[%clk 0:00:39.6]} 32... Kf7 {[%clk 0:00:17.6]} 33. Be3 {[%clk 0:00:07.9]} 33...
d4 {[%clk 0:00:13.5]} 34. Bc1 {[%clk 0:00:07.7]} 34... d3 {[%clk 0:00:14.1]} 35.
Rd1 {[%clk 0:00:05.6]} 35... Rxf2+ {[%clk 0:00:08.6]} 36. Ke4 {[%clk 0:00:06.3]}
36... Re2+ {[%clk 0:00:02.9]} 37. Kxd3 {[%clk 0:00:06.3]} 37... Rh2 {[%clk
0:00:03.8]} 38. Kc4 {[%clk 0:00:06.8]} 38... Be7 {[%clk 0:00:03.5]} 39. Rd3
{[%clk 0:00:07.4]} 39... Ke6 {[%clk 0:00:01.6]} 40. Bd2 {[%clk 0:00:06.9]} 40...
Bd6 {[%clk 0:00:01.2]} 41. Bc3 {[%clk 0:00:07.2]} 41... Re2 {[%clk 0:00:01]} 42.
Kb5 {[%clk 0:00:07.2]} 42... Be5 {[%clk 0:00:01]} 43. Kxa4 {[%clk 0:00:06]} 1-0

[Event "Early-Titled-Tuesday-Blitz-June-18-2024"]
[Site "Chess.com"]
[Date "2024.06.18"]
[Round "8"]
[White "chezzgirl04"]
[Black "MaxLeto"]
[Result "1-0"]
[WhiteElo "2268"]
[BlackElo "2446"]
[TimeControl "180+1"]
[EndTime "9:30:54 PDT"]
[Termination "chezzgirl04 won on time"]

1. e4 {[%clk 0:02:54.4]} 1... c5 {[%clk 0:02:59.2]} 2. Nf3 {[%clk 0:02:54.5]}
2... d6 {[%clk 0:02:59.8]} 3. d4 {[%clk 0:02:54.4]} 3... cxd4 {[%clk 0:03:00.7]}
4. Nxd4 {[%clk 0:02:54.9]} 4... Nf6 {[%clk 0:03:01.4]} 5. Nc3 {[%clk 0:02:55.2]}
5... a6 {[%clk 0:03:01.9]} 6. Bc4 {[%clk 0:02:55.5]} 6... e6 {[%clk 0:03:02.3]}
7. Bb3 {[%clk 0:02:55.8]} 7... Nbd7 {[%clk 0:03:02.7]} 8. O-O {[%clk 0:02:56.3]}
8... Nc5 {[%clk 0:03:03.3]} 9. f4 {[%clk 0:02:55.5]} 9... Qc7 {[%clk 0:02:58.7]}
10. f5 {[%clk 0:02:53.7]} 10... e5 {[%clk 0:02:40.6]} 11. Nf3 {[%clk 0:02:53.6]}
11... Ncxe4 {[%clk 0:02:23.5]} 12. Nxe4 {[%clk 0:02:51]} 12... Nxe4 {[%clk
0:02:24.4]} 13. Qe2 {[%clk 0:01:53.5]} 13... Nc5 {[%clk 0:02:07.1]} 14. Bd5
{[%clk 0:01:53.3]} 14... Bd7 {[%clk 0:02:04.8]} 15. Ng5 {[%clk 0:01:40.9]} 15...
Be7 {[%clk 0:00:51.1]} 16. Bxf7+ {[%clk 0:01:33.6]} 16... Kd8 {[%clk 0:00:48.5]}
17. Ne6+ {[%clk 0:01:32]} 17... Nxe6 {[%clk 0:00:41.9]} 18. fxe6 {[%clk
0:01:32]} 18... Bb5 {[%clk 0:00:42.3]} 19. Qf2 {[%clk 0:01:21.7]} 19... Bxf1
{[%clk 0:00:42.1]} 20. Be3 {[%clk 0:01:21.9]} 20... Kc8 {[%clk 0:00:20.7]} 21.
Bb6 {[%clk 0:01:01.5]} 21... Qc6 {[%clk 0:00:16.5]} 22. Rxf1 {[%clk 0:01:00.9]}
22... d5 {[%clk 0:00:14]} 23. a4 {[%clk 0:00:54.6]} 23... a5 {[%clk 0:00:14.2]}
24. Be3 {[%clk 0:00:41.3]} 24... Kb8 {[%clk 0:00:10.8]} 25. Qg3 {[%clk 0:00:41]}
25... Bf6 {[%clk 0:00:10.7]} 26. Rxf6 {[%clk 0:00:37.9]} 26... gxf6 {[%clk
0:00:10]} 27. Qg7 {[%clk 0:00:31]} 27... Rc8 {[%clk 0:00:09.7]} 28. Qxf6 {[%clk
0:00:30.2]} 28... Qd6 {[%clk 0:00:08.4]} 29. c3 {[%clk 0:00:25.6]} 29... Ra6
{[%clk 0:00:06.3]} 30. Qf5 {[%clk 0:00:20.1]} 30... Ka8 {[%clk 0:00:05.5]} 31.
Bf2 {[%clk 0:00:12.7]} 31... Rac6 {[%clk 0:00:05.5]} 32. Bh4 {[%clk 0:00:11.4]}
32... d4 {[%clk 0:00:04.9]} 33. e7 {[%clk 0:00:11.5]} 33... dxc3 {[%clk
0:00:04.3]} 34. bxc3 {[%clk 0:00:09.2]} 34... Qd1+ {[%clk 0:00:03.8]} 35. Qf1
{[%clk 0:00:08.6]} 35... Qxf1+ {[%clk 0:00:03.8]} 36. Kxf1 {[%clk 0:00:08.9]}
36... Rxc3 {[%clk 0:00:03.3]} 37. Be6 {[%clk 0:00:06.5]} 37... R3c4 {[%clk
0:00:02.5]} 38. Bxc4 {[%clk 0:00:06.3]} 38... Re8 {[%clk 0:00:02.2]} 39. Bb5
{[%clk 0:00:06.3]} 39... Rg8 {[%clk 0:00:01.1]} 40. e8=Q+ {[%clk 0:00:05.7]}
40... Rxe8 {[%clk 0:00:01.1]} 41. Bxe8 {[%clk 0:00:06.6]} 1-0

[Event "Early-Titled-Tuesday-Blitz-June-18-2024"]
[Site "Chess.com"]
[Date "2024.06.18"]
[Round "8"]
[White "Ginger_GM"]
[Black "Giantgoogachess"]
[Result "0-1"]
[WhiteElo "2618"]
[BlackElo "2470"]
[TimeControl "180+1"]
[EndTime "9:30:56 PDT"]
[Termination "Giantgoogachess won by checkmate"]

1. f4 {[%clk 0:03:00.9]} 1... d5 {[%clk 0:02:58.2]} 2. Nf3 {[%clk 0:03:00.7]}
2... Nf6 {[%clk 0:02:57.3]} 3. e3 {[%clk 0:03:00.9]} 3... Bf5 {[%clk 0:02:57.4]}
4. Nc3 {[%clk 0:02:59.6]} 4... e6 {[%clk 0:02:57.6]} 5. d3 {[%clk 0:02:59.7]}
5... Be7 {[%clk 0:02:56.6]} 6. Qe2 {[%clk 0:02:59.5]} 6... h6 {[%clk 0:02:56.1]}
7. Bd2 {[%clk 0:02:59.4]} 7... c6 {[%clk 0:02:55.7]} 8. e4 {[%clk 0:02:58.7]}
8... Bh7 {[%clk 0:02:55.9]} 9. g3 {[%clk 0:02:46.2]} 9... O-O {[%clk 0:02:55]}
10. Bg2 {[%clk 0:02:46]} 10... a5 {[%clk 0:02:54.6]} 11. O-O {[%clk 0:02:42.2]}
11... a4 {[%clk 0:02:45.3]} 12. Kh1 {[%clk 0:02:40.5]} 12... b5 {[%clk 0:02:45]}
13. e5 {[%clk 0:02:36.8]} 13... Nfd7 {[%clk 0:02:44.7]} 14. Nd1 {[%clk
0:02:34.4]} 14... c5 {[%clk 0:02:40.8]} 15. Nf2 {[%clk 0:02:32.5]} 15... Nc6
{[%clk 0:02:41.2]} 16. g4 {[%clk 0:02:23.3]} 16... c4 {[%clk 0:02:24.2]} 17. Bh3
{[%clk 0:02:13.7]} 17... Qc7 {[%clk 0:02:15.6]} 18. Rae1 {[%clk 0:02:12.3]}
18... Rae8 {[%clk 0:01:50.8]} 19. f5 {[%clk 0:02:07.9]} 19... exf5 {[%clk
0:01:49.4]} 20. gxf5 {[%clk 0:02:07.8]} 20... Ndxe5 {[%clk 0:01:34.7]} 21. Nxe5
{[%clk 0:02:02.2]} 21... Bd6 {[%clk 0:01:34.1]} 22. d4 {[%clk 0:01:29.4]} 22...
f6 {[%clk 0:01:04.8]} 23. Nfg4 {[%clk 0:00:40.5]} 23... Nxd4 {[%clk 0:00:40.4]}
24. Qg2 {[%clk 0:00:36.8]} 24... Bxe5 {[%clk 0:00:27.2]} 25. Qxd5+ {[%clk
0:00:34.3]} 25... Kh8 {[%clk 0:00:26.5]} 26. Nxe5 {[%clk 0:00:34.5]} 26... fxe5
{[%clk 0:00:16.5]} 27. f6 {[%clk 0:00:27.9]} 27... Rxf6 {[%clk 0:00:15.8]} 28.
Rxf6 {[%clk 0:00:27.6]} 28... gxf6 {[%clk 0:00:16.7]} 29. Bxh6 {[%clk
0:00:23.8]} 29... Rd8 {[%clk 0:00:14.6]} 30. Qg2 {[%clk 0:00:19.3]} 30... Bxc2
{[%clk 0:00:14]} 31. Rg1 {[%clk 0:00:15.9]} 31... Qc6 {[%clk 0:00:09]} 32. Bg7+
{[%clk 0:00:15]} 32... Kh7 {[%clk 0:00:09.2]} 33. Qxc6 {[%clk 0:00:11.5]} 33...
Nxc6 {[%clk 0:00:09.4]} 34. Rg3 {[%clk 0:00:10]} 34... Be4+ {[%clk 0:00:09.7]}
35. Kg1 {[%clk 0:00:10.3]} 35... Rd1+ {[%clk 0:00:09.6]} 36. Kf2 {[%clk
0:00:10.6]} 36... f5 {[%clk 0:00:02.4]} 37. Bf6 {[%clk 0:00:09.6]} 37... Rd2+
{[%clk 0:00:02.9]} 38. Ke1 {[%clk 0:00:08.6]} 38... Rxh2 {[%clk 0:00:03.4]} 39.
Bf1 {[%clk 0:00:07]} 39... Nd4 {[%clk 0:00:03.4]} 40. Kd1 {[%clk 0:00:05]} 40...
Bf3+ {[%clk 0:00:03.4]} 41. Kc1 {[%clk 0:00:02.2]} 41... Rc2+ {[%clk 0:00:04.1]}
42. Kb1 {[%clk 0:00:02.1]} 42... Rf2 {[%clk 0:00:03.5]} 43. Bh3 {[%clk
0:00:01.6]} 43... Be4+ {[%clk 0:00:03.7]} 44. Kc1 {[%clk 0:00:01.6]} 44... Rc2+
{[%clk 0:00:02.2]} 45. Kd1 {[%clk 0:00:02]} 45... Rh2 {[%clk 0:00:02.2]} 46.
Rg7+ {[%clk 0:00:02.2]} 46... Kh6 {[%clk 0:00:02.6]} 47. Ke1 {[%clk 0:00:02.6]}
47... Nf3+ {[%clk 0:00:02.7]} 48. Kf1 {[%clk 0:00:02.5]} 48... Rxh3 {[%clk
0:00:03.6]} 49. Rg8 {[%clk 0:00:01.7]} 49... Kh5 {[%clk 0:00:03.9]} 50. Kf2
{[%clk 0:00:02.1]} 50... Rh2+ {[%clk 0:00:04.2]} 51. Kg3 {[%clk 0:00:02.1]}
51... f4# {[%clk 0:00:04.8]} 0-1